bitfinex/quotes_SOLUSD_20240714
["timestamp","ask_amount","ask_price","bid_price","bid_amount"]
[1720916283903,5.757e-05,144.5,144.49,1.3835486]
[1720916284334,5.757e-05,144.5,144.46,1.38357525]
[1720916284910,5.757e-05,144.5,144.46,66.38357525]
[1720916285099,5.757e-05,144.5,144.46,46.38357525]
[1720916285299,5.757e-05,144.5,144.47,20.0]
[1720916285503,5.757e-05,144.5,144.48,1.38351679]
[1720916285709,5.757e-05,144.5,144.47,20.0]
[1720916285710,5.757e-05,144.5,144.49,1.38360803]
[1720916286113,5.757e-05,144.5,144.43,1.38381802]
[1720916287724,5.757e-05,144.5,144.44,1.38409901]
[1720916287927,5.757e-05,144.5,144.4,1.38405961]
[1720916289232,5.757e-05,144.5,144.4,22.27405961]
[1720916289426,5.757e-05,144.5,144.41,65.0]
[1720916289626,5.757e-05,144.5,144.42,1.38385756]
[1720916289929,5.757e-05,144.5,144.43,1.38385923]
[1720916291136,22.5333,144.49,144.39,7.23932537]
[1720916291515,22.5333,144.49,144.4,1.38420523]
[1720916292630,22.5333,144.49,144.4,21.38420523]
[1720916293024,22.5333,144.49,144.41,45.0]
[1720916293338,22.5333,144.49,144.42,1.38415988]
[1720916293519,22.5333,144.49,144.43,1.38406404]
[1720916294636,22.5333,144.49,144.39,7.23932537]
[1720916294932,22.5333,144.46,144.31,25.4]
[1720916295138,22.5333,144.46,144.32,7.24011913]
[1720916295320,22.5333,144.46,144.33,0.70330425]
[1720916296222,15.9668,144.45,144.33,1.38491796]
[1720916296429,6.5252,144.44,144.33,1.38491796]
[1720916297736,6.5252,144.44,144.34,1.38482201]
[1720916297927,6.5252,144.44,144.32,7.24011913]
[1720916298127,6.5252,144.44,144.33,1.38501891]
[1720916298331,6.5252,144.44,144.33,21.38501891]
[1720916298938,6.5252,144.44,144.33,20.0]
[1720916299121,15.9668,144.43,144.32,7.24011913]
[1720916299314,6.5252,144.42,144.26,2.21184561]
[1720916299524,6.5252,144.42,144.27,7.24634191]
[1720916299753,15.9668,144.41,144.27,7.24634191]
[1720916299937,6.5252,144.4,144.27,7.24634191]
[1720916300659,10.0,144.43,144.27,7.24634191]
[1720916300660,6.5252,144.37,144.27,7.24634191]
[1720916300819,15.9668,144.36,144.27,7.24634191]
[1720916301445,6.5252,144.35,144.27,7.24634191]
[1720916304434,15.9668,144.34,144.27,7.24634191]
[1720916304634,15.9668,144.32,144.27,7.24634191]
[1720916304847,6.5252,144.31,144.21,0.2]
[1720916305439,41.3668,144.32,144.21,0.2]
[1720916305440,31.9252,144.29,144.21,0.2]
[1720916305841,6.5252,144.29,144.21,0.2]
[1720916306048,6.5252,144.29,144.21,1.58624578]
[1720916307337,6.5252,144.29,144.21,21.58624578]
[1720916307556,6.5252,144.29,144.22,45.0]
[1720916307862,6.5252,144.29,144.23,1.38595589]
[1720916308156,6.5252,144.29,144.22,45.0]
[1720916308340,6.5252,144.29,144.23,1.38610031]
[1720916309038,6.5252,144.29,144.22,45.0]
[1720916309240,6.5252,144.29,144.21,0.2]
[1720916309444,6.5252,144.29,144.21,1.41467909]
[1720916309956,6.5252,144.29,144.21,0.2]
[1720916310460,6.5252,144.29,144.21,1.22675401]
[1720916311556,13.4557,144.29,144.21,0.2]
[1720916312150,6.9321,144.26,144.21,8.52047756]
[1720916312352,6.5252,144.29,144.23,6.9329]
[1720916312550,6.5252,144.29,144.21,0.2]
[1720916312762,6.5252,144.27,144.21,0.2]
[1720916312965,13.457,144.27,144.22,6.9337]
[1720916313268,6.9329,144.24,144.21,0.2]
[1720916313771,13.4571,144.27,144.21,0.2]
[1720916314094,6.5252,144.27,144.24,6.9326]
[1720916314251,6.5252,144.27,144.21,0.2]
[1720916314746,6.5252,144.27,144.21,7.1342]
[1720916315146,13.4566,144.27,144.21,7.1342]
[1720916315371,6.5252,144.27,144.21,0.2]
[1720916316046,6.9332,144.24,144.21,0.2]
[1720916316248,6.9348,144.2,144.18,0.8347028]
[1720916316443,15.3125,144.19,144.18,0.8347028]
[1720916316674,10.0,144.25,144.13,6.938]
[1720916316675,6.3411,144.17,144.13,6.938]
[1720916316881,6.3411,144.17,144.11,0.2]
[1720916317341,6.9371,144.16,144.11,0.2]
[1720916317545,6.3411,144.17,144.11,7.139]
[1720916317764,6.3411,144.17,144.11,0.2]
[1720916317967,6.9368,144.16,144.11,7.1387]
[1720916318262,6.9373,144.15,144.11,0.2]
[1720916318457,6.9377,144.14,144.11,0.2]
[1720916318656,6.3411,144.17,144.11,0.2]
[1720916319066,6.3411,144.17,144.16,6.9367]
[1720916319368,6.3411,144.17,144.15,6.9371]
[1720916319565,6.3411,144.17,144.11,0.2]
[1720916319566,6.3411,144.17,144.14,6.9376]
[1720916319758,6.3411,144.17,144.11,0.2]
[1720916319946,6.3411,144.17,144.14,6.9376]
[1720916320350,6.3411,144.17,144.15,6.9371]
[1720916320551,6.3411,144.17,144.16,6.9367]
[1720916320756,6.3411,144.17,144.15,6.937]
[1720916320956,6.3411,144.17,144.11,0.2]
[1720916321176,6.3411,144.17,144.11,7.139]
[1720916321383,6.3411,144.17,144.12,1.38684797]
[1720916321587,6.3411,144.17,144.15,6.9371]
[1720916321751,6.3411,144.17,144.11,1.58733503]
[1720916321949,13.2773,144.17,144.13,6.9381]
[1720916322256,6.3411,144.17,144.11,0.2]
[1720916322767,49.65870988,144.27,144.11,0.2]
[1720916322768,6.3411,144.2,144.11,0.2]
[1720916322950,6.3411,144.2,144.12,1.38699665]
[1720916323269,6.3411,144.2,144.17,6.9361]
[1720916323463,6.3411,144.2,144.12,1.38699665]
[1720916323978,6.3411,144.2,144.19,6.9352]
[1720916324154,6.3411,144.2,144.17,6.9359]
[1720916324351,6.3411,144.2,144.18,6.9357]
[1720916324558,15.3125,144.22,144.19,1.38704836]
[1720916324876,15.3125,144.22,144.19,6.9349]
[1720916325265,15.3125,144.22,144.2,6.9347]
[1720916325570,15.3125,144.22,144.2,6.9346]
[1720916325778,6.3411,144.24,144.21,8.32111884]
[1720916326356,6.3411,144.24,144.21,1.38681884]
[1720916326668,6.3411,144.24,144.21,1.38669598]
[1720916326970,6.3411,144.24,144.23,6.9333]
[1720916327355,15.3125,144.26,144.25,6.9324]
[1720916327556,15.3125,144.26,144.23,6.933]
[1720916327784,15.3125,144.26,144.24,1.38640761]
[1720916327962,15.3125,144.26,144.24,8.31900761]
[1720916328655,6.3411,144.28,144.24,1.38640761]
[1720916328954,6.3411,144.28,144.25,6.9324]
[1720916329162,6.3411,144.28,144.18,1.38637111]
[1720916329477,6.9319,144.26,144.21,6.9342]
[1720916329780,6.932,144.26,144.21,6.9342]
[1720916330482,6.933,144.24,144.13,32.03]
[1720916330657,6.933,144.24,144.14,20.0]
[1720916330973,6.933,144.24,144.15,1.34173041]
[1720916331179,6.9334,144.23,144.19,6.9351]
[1720916331386,15.3125,144.27,144.2,1.34126517]
[1720916331566,22.2443,144.27,144.14,1.34126517]
[1720916331875,22.244,144.27,144.22,6.9334]
[1720916332175,15.3125,144.27,144.23,8.29550532]
[1720916332391,15.3125,144.27,144.2,6.9347]
[1720916332759,6.9321,144.26,144.21,8.29572748]
[1720916332965,6.9321,144.26,144.21,1.36182748]
[1720916333167,6.9321,144.26,144.22,6.9338]
[1720916333670,15.3125,144.27,144.23,6.9332]
[1720916333990,15.3125,144.27,144.17,1.38662568]
[1720916334289,15.3125,144.27,144.24,6.9328]
[1720916334499,15.3125,144.27,144.19,1.38644774]
[1720916334665,6.3411,144.28,144.26,6.9314]
[1720916334971,6.3411,144.28,144.25,6.9323]
[1720916335169,6.3411,144.28,144.27,6.9314]
[1720916335361,15.3125,144.31,144.2,1.38618571]
[1720916335564,15.3125,144.31,144.22,25.4]
[1720916335760,6.5899,144.32,144.29,6.9304]
[1720916335961,6.5899,144.32,144.3,6.9298]
[1720916336357,6.5899,144.32,144.24,1.38586701]
[1720916336358,6.5899,144.32,144.28,6.9305]
[1720916336582,16.2699,144.34,144.29,1.38584932]
[1720916336787,16.2699,144.34,144.22,25.4]
[1720916336788,16.2699,144.34,144.31,6.929]
[1720916337092,16.2699,144.34,144.25,25.4]
[1720916337093,6.5899,144.35,144.32,8.31422868]
[1720916337395,23.1961,144.38,144.33,8.31393918]
[1720916337583,23.1961,144.38,144.33,6.9284]
[1720916338082,16.2699,144.38,144.34,8.31311108]
[1720916338400,16.2699,144.38,144.34,6.9276]
[1720916338695,16.2699,144.38,144.36,6.9269]
[1720916338995,6.5899,144.39,144.28,25.4]
[1720916338996,6.5899,144.39,144.37,1.38519008]
[1720916339297,6.5899,144.39,144.29,66.38514164]
[1720916339588,13.5156,144.39,144.34,6.9277]
[1720916339799,13.5156,144.39,144.35,8.31229506]
[1720916340371,6.5899,144.39,144.35,8.31229506]
[1720916340684,6.5899,144.39,144.36,6.927]
[1720916340988,6.5899,144.39,144.29,65.0]
[1720916341174,6.5899,144.39,144.34,6.9279]
[1720916341379,13.516,144.39,144.33,6.9284]
[1720916341674,6.5899,144.39,144.36,6.9269]
[1720916341874,6.5899,144.39,144.37,8.00928859]
[1720916342079,6.5899,144.39,144.37,6.9264]
[1720916342279,6.5899,144.39,144.3,1.38514243]
[1720916342490,6.5899,144.39,144.35,6.9272]
[1720916342806,6.5899,144.39,144.36,8.31230608]
[1720916343173,6.5899,144.39,144.37,6.9265]
[1720916343669,16.2699,144.42,144.38,6.9261]
[1720916343878,16.2699,144.42,144.38,8.31126184]
[1720916344388,6.9254,144.4,144.36,6.927]
[1720916344599,16.2699,144.42,144.37,6.9266]
[1720916344990,23.1945,144.42,144.37,6.9266]
[1720916345682,6.9248,144.41,144.37,6.9266]
[1720916345985,23.1942,144.42,144.37,6.9266]
[1720916346193,6.9247,144.41,144.37,6.9266]
[1720916346392,6.9247,144.41,144.36,6.9269]
[1720916346704,6.9247,144.41,144.37,8.31165656]
[1720916347071,6.9247,144.41,144.36,6.927]
[1720916347273,6.9247,144.41,144.3,25.4]
[1720916347274,16.2699,144.42,144.35,6.9275]
[1720916347473,6.9258,144.39,144.34,6.9279]
[1720916347695,6.9253,144.4,144.36,6.927]
[1720916347895,6.9248,144.41,144.37,8.31032786]
[1720916348101,16.2699,144.42,144.38,6.926]
[1720916348768,16.2699,144.42,144.3,25.4]
[1720916348769,6.5324,144.43,144.39,8.30982829]
[1720916349168,6.9242,144.42,144.34,1.38432864]
[1720916349362,6.5324,144.43,144.36,6.927]
[1720916349602,6.9255,144.4,144.35,6.9274]
[1720916349976,6.9255,144.4,144.29,45.4]
[1720916350184,2.4442751,144.49,144.39,16.2101]
[1720916350370,0.2,144.49,144.48,6.9213]
[1720916350579,0.8347028,144.53,144.48,6.9213]
[1720916350580,0.8347028,144.53,144.49,6.9208]
[1720916350772,0.8347028,144.53,144.52,6.9194]
[1720916351508,0.8347028,144.53,144.52,51.9194]
[1720916354079,0.2,144.59,144.52,45.0]
[1720916354285,0.2,144.59,144.5,25.4]
[1720916354286,0.2,144.59,144.53,1.38296286]
[1720916355300,0.2,144.59,144.52,1.38295391]
[1720916359103,0.2,144.59,144.53,25.4]
[1720916359302,0.2,144.59,144.54,21.38274017]
[1720916359490,0.2,144.59,144.55,1.38264451]
[1720916359816,0.2,144.59,144.56,0.9500203]
[1720916360184,0.2,144.59,144.56,21.38255118]
[1720916360384,0.2,144.59,144.57,45.0]
[1720916360683,0.2,144.59,144.58,1.38260944]
[1720916361603,0.2,144.59,144.57,6.9139]
[1720916361783,0.2,144.59,144.58,1.38248517]
[1720916362085,0.2,144.59,144.54,28.5917476]
[1720916362293,0.2,144.59,144.55,1.38284892]
[1720916363390,0.2,144.59,144.55,46.38284892]
[1720916364413,0.2,144.59,144.55,1.38284892]
[1720916367413,0.2,144.59,144.55,46.38284892]
[1720916368186,0.2,144.59,144.55,1.38284892]
[1720916370615,0.2,144.59,144.55,46.38284892]
[1720916370800,0.2,144.59,144.55,1.38284892]
[1720916371311,13.4905,144.59,144.48,16.2101]
[1720916371895,6.5741,144.59,144.48,16.2101]
[1720916372101,13.4902,144.59,144.49,1.38330178]
[1720916372310,6.5741,144.59,144.49,1.38330178]
[1720916372510,6.9177,144.56,144.49,1.38330178]
[1720916372823,6.5741,144.59,144.49,1.38330178]
[1720916373000,6.5741,144.59,144.49,46.38330178]
[1720916373796,6.5741,144.59,144.5,45.4]
[1720916374006,0.2,144.59,144.51,46.38310443]
[1720916374214,0.2,144.59,144.52,21.38306422]
[1720916374418,0.2,144.59,144.53,45.0]
[1720916374719,0.2,144.59,144.54,1.38287284]
[1720916374917,0.2,144.59,144.55,1.38277717]
[1720916375425,0.8347028,144.67,144.58,25.4]
[1720916375589,0.8347028,144.67,144.62,25.4]
[1720916377596,0.8347028,144.67,144.58,1.38243594]
[1720916377793,6.9137,144.64,144.6,6.2581]
[1720916378001,6.9133,144.65,144.6,6.2581]
[1720916378202,6.9133,144.65,144.61,1.1342922]
[1720916378394,6.9128,144.66,144.57,8.19828775]
[1720916378595,1.02918463,144.65,144.57,6.9133]
[1720916378813,7.94248463,144.65,144.58,1.28469824]
[1720916379132,6.9128,144.66,144.54,4.05831424]
[1720916379294,6.9128,144.66,144.55,1.28460936]
[1720916379490,7.7470028,144.67,144.55,1.28460936]
[1720916379999,6.9128,144.66,144.55,1.28460936]
[1720916380200,7.94198463,144.66,144.55,46.28460936]
[1720916380418,6.9127,144.66,144.55,46.28460936]
[1720916381501,7.7471028,144.67,144.56,20.0]
[1720916381703,1.02918463,144.66,144.57,46.32309094]
[1720916381908,6.9131,144.66,144.57,46.32309094]
[1720916382104,6.9132,144.65,144.57,46.32309094]
[1720916382501,6.9128,144.66,144.57,46.32309094]
[1720916382699,0.8347028,144.67,144.57,46.32309094]
[1720916382903,0.8347028,144.67,144.58,15.1811]
[1720916383094,0.8347028,144.67,144.59,46.32290792]
[1720916383313,0.8347028,144.67,144.6,20.0]
[1720916383504,0.8347028,144.67,144.61,46.38235144]
[1720916384901,0.8347028,144.67,144.62,45.4]
[1720916385229,0.8347028,144.67,144.63,67.18202963]
[1720916385614,0.8347028,144.67,144.63,46.38202963]
[1720916385822,0.8347028,144.67,144.63,49.15404163]
[1720916386122,0.8347028,144.67,144.64,20.0]
[1720916386332,0.8347028,144.67,144.65,46.38189426]
[1720916386932,0.8347028,144.67,144.65,1.38189426]
[1720916387542,0.8347028,144.67,144.65,46.78189426]
[1720916387708,0.8347028,144.67,144.66,45.0]
[1720916388411,0.8347028,144.67,144.66,65.0]
[1720916390533,0.8347028,144.67,144.63,28.172012]
[1720916390739,0.8347028,144.67,144.64,1.03605743]
[1720916391111,0.8347028,144.67,144.63,2.772012]
[1720916391620,0.8347028,144.67,144.64,1.38230408]
[1720916393142,0.8347028,144.67,144.64,46.38230408]
[1720916393519,0.8347028,144.67,144.64,1.38230408]
[1720916394923,0.8347028,144.67,144.64,46.38230408]
[1720916398645,0.8347028,144.67,144.64,45.0]
[1720916399025,0.8347028,144.67,144.63,2.772012]
[1720916399231,0.8347028,144.67,144.65,1.38213599]
[1720916401069,0.8347028,144.67,144.66,1.3823301]
[1720916401272,0.8347028,144.67,144.64,1.38236424]
[1720916401566,0.8347028,144.67,144.65,1.38236582]
[1720916401942,0.8347028,144.67,144.64,1.38236584]
[1720916402137,0.8347028,144.67,144.6,1.3825081]
[1720916402344,8.77628743,144.67,144.61,1.38254052]
[1720916402566,7.7471028,144.67,144.61,1.38254052]
[1720916403166,1.02918463,144.66,144.61,1.38254052]
[1720916403367,1.02918463,144.66,144.56,1.38267395]
[1720916403568,1.02918463,144.66,144.58,7.747103]
[1720916403779,0.8347028,144.67,144.59,1.38267555]
[1720916404063,1.86388743,144.67,144.59,1.38267555]
[1720916404372,8.77618743,144.67,144.58,7.747103]
[1720916404942,1.86388743,144.67,144.59,1.3826464]
[1720916405149,0.8347028,144.67,144.59,46.3826464]
[1720916406048,7.7470028,144.67,144.59,46.3826464]
[1720916406255,7.94198463,144.66,144.59,45.0]
[1720916406450,0.8347028,144.67,144.59,45.0]
[1720916407063,0.8347028,144.67,144.6,0.9599454]
[1720916407267,7.7470028,144.67,144.6,0.9599454]
[1720916407457,7.7470028,144.67,144.6,1.38262922]
[1720916407763,0.8347028,144.67,144.61,1.38263101]
[1720916408755,0.8347028,144.67,144.59,45.0]
[1720916408963,6.9128,144.66,144.59,45.0]
[1720916409150,7.7470028,144.67,144.59,45.0]
[1720916409356,0.8347028,144.67,144.6,1.38264268]
[1720916410949,0.8347028,144.67,144.6,21.38264268]
[1720916411148,0.8347028,144.67,144.61,25.4]
[1720916411452,0.8347028,144.67,144.62,46.38215504]
[1720916412680,0.8347028,144.67,144.63,1.38249394]
[1720916412877,0.8347028,144.67,144.59,1.38245442]
[1720916413387,0.8347028,144.67,144.58,7.747103]
[1720916413557,0.8347028,144.67,144.59,1.3824552]
[1720916414076,0.8347028,144.67,144.59,46.3824552]
[1720916414677,0.8347028,144.67,144.59,1.3824552]
[1720916416059,0.8347028,144.67,144.59,46.3824552]
[1720916416762,0.8347028,144.67,144.61,25.4]
[1720916416988,0.8347028,144.67,144.62,46.38216972]
[1720916417786,0.8347028,144.67,144.62,1.38216972]
[1720916417984,6.9131,144.66,144.59,21.3823419]
[1720916418310,0.8347028,144.67,144.59,1.3823419]
[1720916418580,0.8347028,144.67,144.59,26.7823419]
[1720916419584,0.8347028,144.67,144.6,45.0]
[1720916419789,0.8347028,144.67,144.61,1.38241677]
[1720916426791,0.8347028,144.67,144.61,23.91241677]
[1720916427092,0.8347028,144.67,144.62,45.0]
[1720916427389,0.8347028,144.67,144.63,1.38217494]
[1720916427583,6.9138,144.64,144.58,7.747103]
[1720916427787,14.18168463,144.65,144.54,16.2185]
[1720916428004,14.18168463,144.65,144.53,16.2185]
[1720916428005,7.94298463,144.64,144.53,16.2185]
[1720916428178,1.02918463,144.64,144.54,22.53]
[1720916428493,6.9138,144.64,144.51,44.62694521]
[1720916428798,7.26808463,144.65,144.51,44.62694521]
[1720916428799,6.2389,144.65,144.56,22.53]
[1720916428994,6.2389,144.65,144.51,31.2719274]
[1720916429209,6.9138,144.64,144.51,31.2719274]
[1720916429503,6.9143,144.63,144.53,22.53]
[1720916429706,1.02918463,144.62,144.54,1.38290996]
[1720916429908,6.2389,144.65,144.55,1.38281428]
[1720916429909,6.9156,144.6,144.55,1.38281428]
[1720916430295,13.1556,144.58,144.51,22.53]
[1720916430677,6.2389,144.58,144.51,22.53]
[1720916430900,6.2389,144.58,144.52,0.77540988]
[1720916431198,6.2389,144.58,144.49,7.19083128]
[1720916431583,16.43778463,144.57,144.49,7.19083128]
[1720916431784,16.43778463,144.57,144.46,22.53]
[1720916431987,15.4086,144.57,144.48,22.53]
[1720916432189,23.35488463,144.57,144.48,22.53]
[1720916432574,16.43778463,144.57,144.48,22.53]
[1720916432776,23.35478463,144.57,144.48,22.53]
[1720916432976,6.9175,144.56,144.48,22.53]
[1720916433195,2.35693388,144.64,144.53,22.53]
[1720916433196,21.6475,144.63,144.53,22.53]
[1720916433409,28.5619,144.63,144.54,1.38296575]
[1720916433706,21.6475,144.63,144.55,1.38287018]
[1720916434097,28.5617,144.63,144.55,1.38287018]
[1720916434587,21.6475,144.63,144.55,1.38287018]
[1720916435200,28.5617,144.63,144.55,1.38287018]
[1720916435407,21.6475,144.63,144.55,1.38287018]
[1720916437016,6.9146,144.62,144.55,1.38287018]
[1720916437219,13.1531,144.63,144.55,1.38287018]
[1720916437385,6.2389,144.63,144.55,1.38287018]
[1720916437587,7.26808463,144.63,144.56,1.38301542]
[1720916437807,6.9157,144.6,144.51,1.38300405]
[1720916438008,6.9157,144.6,144.52,1.38310725]
[1720916438517,6.9157,144.6,144.5,45.37]
[1720916438897,6.9162,144.59,144.51,1.38311798]
[1720916439098,17.2872,144.62,144.52,1.38324458]
[1720916439301,1.02918463,144.61,144.53,1.38333234]
[1720916439597,15.4316,144.66,144.54,1.38251331]
[1720916439796,15.4316,144.66,144.54,21.38251331]
[1720916440002,22.3444,144.66,144.54,21.38251331]
[1720916440191,15.4316,144.66,144.54,21.38251331]
[1720916440505,15.4316,144.66,144.55,45.0]
[1720916440704,22.3444,144.66,144.56,1.38232203]
[1720916441299,6.9133,144.65,144.56,1.38232203]
[1720916441503,15.4316,144.66,144.56,46.75232203]
[1720916441806,7.3772028,144.67,144.57,65.8]
[1720916442114,7.3772028,144.67,144.58,21.38234314]
[1720916442317,7.3772028,144.67,144.59,70.37]
[1720916442499,7.3772028,144.67,144.6,21.38231035]
[1720916442695,7.3772028,144.67,144.61,46.38221476]
[1720916442696,0.8347028,144.67,144.61,46.38221476]
[1720916443419,0.8347028,144.67,144.62,25.37]
[1720916443583,0.8347028,144.67,144.63,52.6690502]
[1720916443788,0.8347028,144.67,144.65,25.37]
[1720916444014,0.8347028,144.67,144.66,46.38176983]
[1720916445801,0.2,144.69,144.66,67.18176983]
[1720916446125,0.2,144.69,144.68,25.37]
[1720916446410,0.2,144.69,144.68,46.17]
[1720916446619,0.04109052,144.78,144.68,66.17]
[1720916446788,0.04109052,144.78,144.71,25.37]
[1720916447396,0.04109052,144.78,144.67,46.17]
[1720916447592,0.04109052,144.78,144.68,20.0]
[1720916447814,0.04109052,144.78,144.68,40.8]
[1720916448021,0.04109052,144.78,144.69,45.0]
[1720916448337,0.04109052,144.78,144.7,1.38125214]
[1720916448512,0.04109052,144.78,144.71,25.37]
[1720916448691,0.04109052,144.78,144.72,46.381193]
[1720916449418,6.94809052,144.78,144.72,46.381193]
[1720916449625,6.94809052,144.78,144.73,1.381339]
[1720916449925,0.04109052,144.78,144.73,1.381339]
[1720916451330,0.04109052,144.78,144.73,1.31243291]
[1720916451692,0.04109052,144.78,144.74,25.37]
[1720916451923,0.04109052,144.78,144.75,46.31196761]
[1720916452903,0.04109052,144.78,144.76,1.38072972]
[1720916453104,0.04109052,144.78,144.71,32.81498219]
[1720916453430,0.04109052,144.78,144.72,21.38105027]
[1720916453627,6.94819052,144.78,144.72,1.38105027]
[1720916454133,0.04109052,144.78,144.72,1.38105027]
[1720916454513,6.5425,144.77,144.72,1.38105027]
[1720916454702,13.4503,144.77,144.69,1.38149377]
[1720916455309,1.09809072,144.76,144.69,1.38149377]
[1720916455722,6.9085,144.75,144.69,1.38149377]
[1720916456624,8.00619072,144.76,144.69,1.38149377]
[1720916456833,6.5425,144.77,144.69,1.38149377]
[1720916457834,6.5425,144.77,144.69,46.38149377]
[1720916458912,0.04109052,144.78,144.69,46.38149377]
[1720916459148,0.04109052,144.78,144.69,45.0]
[1720916459634,0.04109052,144.78,144.7,20.0]
[1720916459831,0.04109052,144.78,144.71,46.38124944]
[1720916460340,0.04109052,144.78,144.71,71.75124944]
[1720916460711,0.04109052,144.78,144.71,92.55124944]
[1720916460916,0.04109052,144.78,144.72,40.8]
[1720916461120,0.04109052,144.78,144.74,25.37]
[1720916461439,0.04109052,144.78,144.75,46.38096315]
[1720916461639,0.04109052,144.78,144.75,1.38096315]
[1720916462011,0.8347028,144.81,144.78,10.0]
[1720916462235,1.09809072,144.92,144.8,25.37]
[1720916462436,6.9012,144.91,144.85,6.9035]
[1720916462625,1.09809072,144.9,144.82,1.38037405]
[1720916462827,15.1711,144.93,144.86,6.9028]
[1720916463039,6.9012,144.91,144.85,6.9032]
[1720916463241,0.79809072,144.92,144.86,1.38036743]
[1720916463457,7.69849072,144.92,144.87,6.9026]
[1720916463632,6.9009,144.91,144.86,6.9031]
[1720916463833,15.1711,144.93,144.87,1.37968073]
[1720916464143,6.9003,144.92,144.88,6.9022]
[1720916464337,7.69839072,144.92,144.87,6.9026]
[1720916464638,22.0711,144.93,144.88,8.28214614]
[1720916464842,0.79809072,144.92,144.84,6.9037]
[1720916465024,0.79809072,144.92,144.85,45.0]
[1720916465227,22.0713,144.93,144.88,6.902]
[1720916465548,15.1711,144.93,144.9,6.9009]
[1720916465852,13.8070028,144.95,144.91,7.90343312]
[1720916466148,13.8070028,144.95,144.91,1.00273312]
[1720916466317,6.9080028,144.95,144.9,1.00408765]
[1720916466513,6.8995,144.94,144.9,1.00408765]
[1720916466738,6.9080028,144.95,144.9,1.00408765]
[1720916466942,6.8999,144.93,144.89,6.9017]
[1720916467152,7.69849072,144.92,144.87,6.9026]
[1720916467355,6.9004,144.92,144.88,1.38022902]
[1720916467525,6.9004,144.92,144.88,8.28242902]
[1720916467723,6.9003,144.93,144.88,8.28232902]
[1720916467957,0.79809072,144.92,144.83,20.0]
[1720916468128,18.04709072,144.94,144.84,1.38002997]
[1720916468559,18.04709072,144.94,144.86,6.9031]
[1720916468767,6.9008,144.92,144.87,8.28300733]
[1720916469055,6.901,144.91,144.87,1.38030733]
[1720916469230,0.79809072,144.9,144.79,25.37]
[1720916469553,6.9022,144.88,144.84,6.9041]
[1720916469724,6.9019,144.89,144.84,6.9041]
[1720916469926,6.9025,144.88,144.83,6.9045]
[1720916470135,6.9014,144.9,144.85,6.9035]
[1720916470361,6.9014,144.9,144.86,1.38039257]
[1720916470654,24.1555028,144.95,144.86,1.38039257]
[1720916470840,6.9003,144.92,144.87,6.9023]
[1720916471042,0.79809072,144.94,144.88,1.38026752]
[1720916471346,7.69749072,144.94,144.89,6.9014]
[1720916471550,7.69749072,144.94,144.82,25.37]
[1720916471551,0.79809072,144.94,144.83,1.38011614]
[1720916471724,6.8995,144.94,144.84,21.2942]
[1720916471929,6.8995,144.94,144.85,46.37991585]
[1720916472124,0.8347028,144.95,144.9,6.9011]
[1720916472125,7.7339028,144.95,144.9,6.9011]
[1720916472427,6.9003,144.92,144.91,1.37988883]
[1720916472646,0.79809072,144.94,144.85,45.0]
[1720916472949,6.8994,144.94,144.9,6.9009]
[1720916473161,8.53169352,144.95,144.9,6.9009]
[1720916473537,1.63279352,144.95,144.86,1.38012217]
[1720916474054,1.63279352,144.95,144.89,6.9017]
[1720916474055,6.8999,144.93,144.89,6.9017]
[1720916474251,0.79809072,144.92,144.87,6.9022]
[1720916474426,6.9,144.93,144.88,8.28234395]
[1720916474649,0.79809072,144.92,144.88,1.38024395]
[1720916474849,0.8347028,144.95,144.89,6.9017]
[1720916474850,7.69749072,144.94,144.89,6.9017]
[1720916475058,0.8347028,144.95,144.9,8.2812806]
[1720916475059,8.53179352,144.95,144.9,8.2812806]
[1720916475281,8.53169352,144.95,144.91,6.9007]
[1720916475450,8.53169352,144.95,144.88,6.9018]
[1720916475451,6.9004,144.92,144.88,6.9018]
[1720916475886,1.63279352,144.95,144.89,1.38019104]
[1720916476070,6.8997,144.94,144.89,6.9017]